fUST/lending_fUST_20240909
["ID","MTS","AMOUNT","RATE_DAILY","PERIOD"]
[337571366,1725828648656,-500.0,0.00050913,120]
[337571367,1725828648666,-500.0,0.00050913,120]
[337571368,1725828648675,-500.0,0.00050913,120]
[337571369,1725828648685,-500.0,0.00050913,120]
[337571370,1725828648695,-500.0,0.00050913,120]
[337571371,1725828648705,-500.0,0.00050913,120]
[337571372,1725828648714,-500.0,0.00050913,120]
[337571373,1725828648723,-500.0,0.00050913,120]
[337571374,1725828648733,-500.0,0.00050913,120]
[337571375,1725828648742,-500.0,0.00050913,120]
[337571376,1725828648751,-500.0,0.00050913,120]
[337571377,1725828648761,-682.88,0.00050913,120]
[337571378,1725828648771,-500.0,0.00050913,120]
[337571379,1725828648780,-500.0,0.00050913,120]
[337571380,1725828648791,-500.0,0.00050913,120]
[337571381,1725828648802,-500.0,0.00050913,120]
[337571382,1725828648812,-500.0,0.00050913,120]
[337571383,1725828648822,-334.20955014,0.00050913,120]
[337571384,1725828648832,-507.51276403,0.00050913,120]
[337571385,1725828648847,-500.0,0.00050913,120]
[337571386,1725828648857,-572.18,0.00050913,7]
[337571387,1725828648867,-388.08264696,0.00050913,120]
[337571388,1725828648875,-614.3,0.00050913,120]
[337571389,1725828648884,-500.0,0.00050913,120]
[337571390,1725828648894,-500.0,0.00050913,120]
[337571391,1725828648904,-500.0,0.00050913,120]
[337571392,1725828648913,-500.0,0.00050913,120]
[337571393,1725828648923,-500.0,0.00050913,120]
[337571394,1725828648934,-500.0,0.00050913,120]
[337571395,1725828648944,-500.0,0.00050913,120]
[337571396,1725828648954,-500.0,0.00050913,120]
[337571397,1725828648963,-501.83,0.00050913,120]
[337571398,1725828648972,-500.0,0.00050913,120]
[337571399,1725828648981,-500.0,0.00050913,2]
[337571400,1725828648990,-819.01,0.00050913,120]
[337571401,1725828649000,-500.0,0.00050913,120]
[337571402,1725828649009,-1208.58,0.00050913,7]
[337571403,1725828649018,-500.0,0.00050913,120]
[337571404,1725828649027,-509.15494208,0.00050913,120]
[337571405,1725828649037,-836.58,0.00050913,120]
[337571406,1725828649046,-1251.48,0.00050913,120]
[337571407,1725828649055,-500.0,0.00050913,120]
[337571408,1725828649065,-500.0,0.00050913,120]
[337571409,1725828649075,-500.0,0.00050913,120]
[337571410,1725828649085,-500.0,0.00050913,120]
[337571411,1725828649094,-500.0,0.00050913,120]
[337571412,1725828649103,-500.0,0.00050913,120]
[337571413,1725828649112,-500.0,0.00050913,120]
[337571414,1725828649123,-500.0,0.00050913,120]
[337571415,1725828649132,-151.0,0.00050914,120]
[337571416,1725828649141,-195.359525,0.00050914,14]
[337571417,1725828649151,-195.359534,0.00050914,14]
[337571418,1725828649160,-500.0,0.00050925,120]
[337571419,1725828649171,-500.0,0.00050925,120]
[337571420,1725828649182,-500.0,0.00050958,120]
[337571421,1725828649192,-500.0,0.00050958,120]
[337571422,1725828649203,-500.0,0.00050958,120]
[337571423,1725828649213,-500.0,0.00050958,120]
[337571424,1725828649223,-500.0,0.00050958,120]
[337571425,1725828649234,-296.71,0.00050958,120]
[337571426,1725828649243,-519.14175641,0.00050958,120]
[337571427,1725828649254,-2968.93,0.00050958,120]
[337571428,1725828649264,-500.0,0.00050958,120]
[337571429,1725828649273,-538.15,0.00050958,120]
[337571430,1725828649284,-3957.67,0.00050958,120]
[337571431,1725828649295,-500.0,0.00050958,120]
[337571432,1725828649305,-2330.21,0.00050958,120]
[337571433,1725828649314,-500.0,0.00050958,120]
[337571434,1725828649324,-500.0,0.00050958,120]
[337571435,1725828649342,-500.0,0.00050958,120]
[337571436,1725828649352,-1973.4,0.00050958,120]
[337571437,1725828649361,-319.89757837,0.00050958,120]
[337571438,1725828649614,-180.10242163,0.00050958,120]
[337571439,1725828649624,-386.85383927,0.00050958,120]
[337571440,1725828650009,-500.0,0.00045918,120]
[337571441,1725828650018,-500.0,0.00045918,120]
[337571442,1725828650028,-500.0,0.00045918,120]
[337571443,1725828650039,-500.0,0.00045918,120]
[337571444,1725828650050,-500.0,0.00045918,120]
[337571445,1725828650059,-363.18005655,0.00046005,120]
[337571446,1725828650069,-165.08285749,0.00046005,120]
[337571447,1725828650078,-500.0,0.00046005,120]
[337571448,1725828650088,-558.45,0.00049863,120]
[337571449,1725828650098,-558.45,0.00050136,120]
[337571450,1725828650107,-558.45,0.0005041,120]
[337571451,1725828650117,-500.0,0.00050481,120]
[337571452,1725828650128,-558.45,0.00050684,120]
[337571453,1725828650139,-135.16616073,0.00050958,120]
[337571454,1725828650148,-2714.19,0.00050958,120]
[337571455,1725828650158,-500.0,0.00050958,120]
[337571456,1725828650168,-500.0,0.00050958,120]
[337571457,1725828650340,-500.0,0.00050958,120]
[337571458,1725828650350,-500.0,0.00050958,120]
[337571459,1725828650360,-500.0,0.00050958,120]
[337571460,1725828650369,-2767.59,0.00050958,120]
[337571461,1725828650379,-500.0,0.00050958,120]
[337571462,1725828650389,-3060.85,0.00050958,120]
[337571463,1725828650399,-884.83,0.00050958,120]
[337571464,1725828650413,-500.0,0.00050958,120]
[337571465,1725828650424,-500.0,0.00050958,120]
[337571466,1725828650436,-1114.7,0.00050958,120]
[337571467,1725828650447,-500.0,0.00050958,120]
[337571468,1725828650457,-549.19,0.00050958,120]
[337571469,1725828650467,-942.47,0.00050958,120]
[337571470,1725828650477,-3447.7,0.00050958,120]
[337571471,1725828650487,-893.14,0.00050958,120]
[337571472,1725828650498,-221.700824,0.00050958,120]
[337571473,1725828650508,-543.97,0.00050958,120]
[337571474,1725828650518,-881.98,0.00050958,120]
[337571475,1725828650527,-500.0,0.00050958,7]
[337571476,1725828650536,-602.63,0.00050958,120]
[337571477,1725828650546,-151.0,0.00050958,30]
[337571478,1725828650555,-500.0,0.00050958,120]
[337571479,1725828650564,-500.0,0.00050958,120]
[337571480,1725828650574,-500.0,0.00050958,120]
[337571481,1725828650584,-6812.27,0.00050958,120]
[337571482,1725828650593,-500.0,0.00050958,2]
[337571483,1725828650602,-897.16,0.00050958,120]
[337571484,1725828650612,-719.24,0.00050958,120]
[337571485,1725828650623,-669.03,0.00050958,120]
[337571486,1725828650633,-624.27,0.00050958,120]
[337571487,1725828650643,-774.44,0.00050958,120]
[337571488,1725828650654,-585.68,0.00050958,120]
[337571489,1725828650663,-922.11,0.00050958,120]
[337571490,1725828650675,-856.06,0.00050958,120]
[337571491,1725828650687,-1376.06,0.00050958,120]
[337571492,1725828650698,-1123.12,0.00050958,120]
[337571493,1725828650707,-500.0,0.00050958,120]
[337571494,1725828650718,-500.0,0.00050958,120]
[337571495,1725828650730,-500.0,0.00050958,60]
[337571496,1725828650739,-500.0,0.00050958,120]
[337571497,1725828650748,-1887.91,0.00050958,120]
[337571498,1725828650758,-4950.93,0.00050958,120]
[337571499,1725828650767,-500.0,0.00050958,120]
[337571500,1725828650776,-151.0,0.00050958,120]
[337571501,1725828650786,-206.52884,0.00050958,120]
[337571502,1725828650795,-500.0,0.00050958,120]
[337571503,1725828650804,-255.696904,0.00050958,120]
[337571504,1725828650814,-206.52884,0.00050958,120]
[337571505,1725828650823,-818.16,0.00050958,120]
[337571506,1725828650832,-695.73,0.00050958,120]
[337571507,1725828650841,-4375.04,0.00050958,120]
[337571508,1725828650851,-500.0,0.00050958,120]
[337571509,1725828650862,-1727.22,0.00050958,120]
[337571510,1725828650873,-156.384981,0.00050958,120]
[337571511,1725828650885,-500.0,0.00050958,120]
[337571512,1725828650895,-500.0,0.00050958,120]
[337571513,1725828650906,-500.0,0.00050958,120]
[337571514,1725828650918,-1678.0,0.00050958,120]
[337571515,1725828650928,-156.384981,0.00050958,120]
[337571516,1725828650937,-225.841964,0.00050958,120]
[337571517,1725828650949,-225.841964,0.00050958,120]
[337571518,1725828650958,-167.408896,0.00050958,120]
[337571519,1725828650969,-1119.62,0.00050958,120]
[337571520,1725828650978,-167.408896,0.00050958,120]
[337571521,1725828650987,-151.0,0.00050958,120]
[337571522,1725828650996,-500.0,0.00050958,120]
[337571523,1725828651006,-500.0,0.00050958,120]
[337571524,1725828651016,-500.0,0.00050958,2]
[337571525,1725828651027,-513.54236205,0.00050958,120]
[337571526,1725828651038,-1067.55,0.00050958,120]
[337571527,1725828651047,-32964.51,0.00050958,120]
[337571528,1725828651057,-500.0,0.00050958,120]
[337571529,1725828651068,-500.0,0.00050958,120]
[337571530,1725828651078,-1938.63,0.00050958,120]
[337571531,1725828651088,-907.9,0.00050958,120]
[337571532,1725828651097,-558.45,0.00050958,120]
[337571533,1725828651107,-500.0,0.00050973,10]
[337571534,1725828651116,-500.0,0.00050973,10]
[337571535,1725828651126,-500.0,0.00050973,10]
[337571536,1725828651135,-500.0,0.00051014,120]
[337571537,1725828651145,-500.0,0.00051014,120]
[337571538,1725828651154,-500.0,0.00051014,120]
[337571539,1725828651164,-500.0,0.00051015,120]
[337571540,1725828651174,-500.0,0.00051015,120]
[337571541,1725828651185,-500.0,0.00051015,120]
[337571542,1725828651195,-500.0,0.00051015,120]
[337571543,1725828651206,-500.0,0.00051015,120]
[337571544,1725828651216,-500.0,0.00051015,120]
[337571545,1725828651225,-503.90368232,0.00051015,120]
[337571546,1725828651235,-500.0,0.00051015,120]
[337571547,1725828651243,-345.54163527,0.00051015,120]
[337571548,1725828651253,-500.0,0.00051015,120]
[337571549,1725828651262,-169.35113573,0.00051015,120]
[337571550,1725828651272,-500.0,0.00051015,120]
[337571551,1725828651281,-500.0,0.00051015,120]
[337571552,1725828651290,-198.83555248,0.00051015,120]
[337571553,1725828651299,-500.0,0.00051015,120]
[337571554,1725828651308,-500.0,0.00051015,120]
[337571555,1725828651317,-500.0,0.00051015,2]
[337571556,1725828651327,-500.0,0.00051015,30]
[337571557,1725828651338,-500.0,0.00051015,120]
[337571558,1725828651347,-500.0,0.00051015,120]
[337571559,1725828651358,-500.0,0.00051015,120]
[337571560,1725828651367,-500.0,0.00051015,120]
[337571561,1725828651377,-500.0,0.00051015,120]
[337571562,1725828651387,-595.26617507,0.00051015,3]
[337571563,1725828651397,-500.0,0.00051015,120]
[337571564,1725828651412,-500.0,0.00051015,120]
[337571565,1725828651422,-500.0,0.00051015,120]
[337571566,1725828651432,-500.0,0.00051015,120]
[337571567,1725828651442,-500.0,0.00051015,120]
[337571568,1725828651453,-500.0,0.00051015,120]
[337571569,1725828651462,-260.88165363,0.00051015,120]
[337571570,1725828651471,-500.0,0.00051024,120]
[337571571,1725828651480,-199.2,0.00051024,120]
[337571572,1725828651489,-1534.17,0.00051029,120]
[337571573,1725828651498,-6932.53,0.00051029,120]
[337571574,1725828651507,-1015.68,0.00051029,120]
[337571575,1725828651517,-1672.69,0.00051029,120]
[337571576,1725828651526,-500.0,0.00051029,120]
[337571577,1725828651535,-535.02,0.00051029,120]
[337571578,1725828651544,-652.93,0.00051029,120]
[337571579,1725828651554,-195.8230372,0.00051035,120]
[337571580,1725828651563,-588.21676416,0.00051035,120]
[337571581,1725828651572,-500.0,0.00051035,120]
[337571582,1725828651581,-635.09,0.00051035,120]
[337571583,1725828651590,-500.0,0.00051035,120]
[337571584,1725828651600,-1085.74,0.00051035,120]
[337571585,1725828651609,-500.0,0.00051035,120]
[337571586,1725828651618,-1544.01,0.00051035,120]
[337571587,1725828651627,-891.58,0.00051035,120]
[337571588,1725828651636,-500.0,0.00051035,120]
[337571589,1725828651645,-500.0,0.00051035,120]
[337571590,1725828651654,-500.0,0.00051035,120]
[337571591,1725828651663,-500.0,0.00051035,120]
[337571592,1725828651673,-500.0,0.00051035,120]
[337571593,1725828651681,-500.0,0.00051035,120]
[337571594,1725828651691,-500.0,0.00051035,120]
[337571595,1725828651699,-500.0,0.00051035,120]
[337571596,1725828651709,-500.0,0.00051035,120]
[337571597,1725828651718,-504.14963447,0.00051035,120]
[337571598,1725828651728,-500.0,0.00051035,120]
[337571599,1725828651738,-500.0,0.00051035,120]
[337571600,1725828651747,-500.0,0.00051035,120]
[337571601,1725828651758,-501.46452145,0.00051035,120]
[337571602,1725828651767,-500.0,0.00051035,120]
[337571603,1725828651777,-500.0,0.00051035,120]
[337571604,1725828651786,-155.0088096,0.00051035,120]
[337571605,1725828651796,-500.0,0.00051035,120]
[337571606,1725828651806,-500.0,0.00051035,120]
[337571607,1725828651815,-500.0,0.00051035,120]
[337571608,1725828651824,-500.0,0.00051035,120]
[337571609,1725828651834,-500.0,0.00051035,120]
[337571610,1725828651843,-500.0,0.00051035,120]
[337571611,1725828651852,-500.0,0.00051035,120]
[337571612,1725828651862,-500.0,0.00051035,120]
[337571613,1725828651871,-500.0,0.00051035,120]
[337571614,1725828651880,-502.41108615,0.00051035,120]
[337571615,1725828651890,-500.0,0.00051035,120]
[337571616,1725828651899,-151.0,0.00051035,30]
[337571617,1725828651909,-151.0,0.00051035,120]
[337571618,1725828651918,-225.841964,0.00051035,120]
[337571619,1725828651928,-225.841964,0.00051035,120]
[337571620,1725828651937,-5693.16262783,0.00051043,2]
[337571621,1725828651947,-150.0,0.00051053,2]
[337571622,1725828651956,-150.112233,0.000511,13]
[337571623,1725828651965,-150.112233,0.000511,14]
[337571624,1725828651975,-172.039717,0.000511,13]
[337571625,1725828651984,-500.0,0.00051114,60]
[337571626,1725828651994,-500.0,0.00051129,120]
[337571627,1725828652004,-520.5907517,0.00051129,120]
[337571628,1725828652013,-500.0,0.00051129,120]
[337571629,1725828652022,-500.0,0.00051129,120]
[337571630,1725828652032,-534.43,0.00051129,120]
[337571631,1725828652041,-573.06,0.00051129,120]
[337571632,1725828652053,-500.0,0.00051129,120]
[337571633,1725828652062,-1282.0,0.00051129,30]
[337571634,1725828652071,-1188.06,0.00051129,120]
[337571635,1725828652081,-500.0,0.00051129,120]
[337571636,1725828652090,-500.0,0.00051129,120]
[337571637,1725828652099,-500.0,0.00051129,120]
[337571638,1725828652108,-709.41,0.00051129,120]
[337571639,1725828652117,-500.0,0.00051129,120]
[337571640,1725828652129,-622.32,0.00051129,120]
[337571641,1725828652139,-1636.69,0.00051129,120]
[337571642,1725828652150,-539.32,0.00051129,120]
[337571643,1725828652160,-500.0,0.00051129,120]
[337571644,1725828652170,-500.0,0.00051129,120]
[337571645,1725828652180,-500.0,0.00051129,120]
[337571646,1725828652192,-1841.83,0.00051129,120]
[337571647,1725828652202,-1216.77,0.00051129,120]
[337571648,1725828652211,-500.0,0.00051129,120]
[337571649,1725828652221,-937.43,0.00051129,120]
[337571650,1725828652231,-686.64,0.00051129,120]
[337571651,1725828652240,-500.0,0.00051129,120]
[337571652,1725828652249,-1680.49,0.00051129,120]
[337571653,1725828652259,-500.0,0.00051129,120]
[337571654,1725828652269,-500.0,0.00051129,120]
[337571655,1725828652278,-500.0,0.00051129,120]
[337571656,1725828652287,-500.0,0.00051129,120]
[337571657,1725828652296,-500.0,0.00051129,120]
[337571658,1725828652305,-1219.37,0.00051129,120]
[337571659,1725828652314,-500.0,0.00051129,120]
[337571660,1725828652323,-500.0,0.00051129,120]
[337571661,1725828652334,-500.0,0.00051129,120]
[337571662,1725828652347,-500.0,0.00051129,120]
[337571663,1725828652355,-500.0,0.00051129,120]
[337571664,1725828652364,-1018.05,0.00051129,120]
[337571665,1725828652373,-500.0,0.00051129,120]
[337571666,1725828652383,-642.98,0.00051129,120]
[337571667,1725828652392,-500.0,0.00051129,120]
[337571668,1725828652402,-665.09,0.00051129,120]
[337571669,1725828652414,-2037.09,0.00051129,120]
[337571670,1725828652423,-1739.47,0.00051129,120]
[337571671,1725828652433,-566.06037959,0.00051129,120]
[337571672,1725828652443,-500.0,0.00051129,120]
[337571673,1725828652454,-500.0,0.00051129,120]
[337571674,1725828652463,-1722.06,0.00051129,120]
[337571675,1725828652473,-1642.91,0.00051129,120]
[337571676,1725828652484,-500.0,0.00051129,120]
[337571677,1725828652494,-500.0,0.00051129,120]
[337571678,1725828652503,-500.0,0.00051129,120]
[337571679,1725828652513,-1588.95,0.00051129,120]
[337571680,1725828652522,-34900.66,0.00051129,120]
[337571681,1725828652532,-1573.6,0.00051129,120]
[337571682,1725828652542,-2590.47,0.00051129,120]
[337571683,1725828652551,-681.21,0.00051129,120]
[337571684,1725828652561,-508.84331803,0.00051129,120]
[337571685,1725828652571,-500.0,0.00051129,120]
[337571686,1725828652581,-500.0,0.00051129,120]
[337571687,1725828652590,-500.0,0.00051129,120]
[337571688,1725828652599,-500.0,0.00051129,120]
[337571689,1725828652609,-500.0,0.00051129,120]
[337571690,1725828652619,-500.0,0.00051129,120]
[337571691,1725828652630,-500.0,0.00051129,120]
[337571692,1725828652641,-151.0,0.00051129,30]
[337571693,1725828652651,-691.88,0.00051129,120]
[337571694,1725828652661,-500.0,0.00051129,120]
[337571695,1725828652671,-1427.74,0.00051129,120]
[337571696,1725828652682,-500.0,0.00051129,120]
[337571697,1725828652693,-896.46,0.00051129,120]
[337571698,1725828652705,-500.0,0.00051129,30]
[337571699,1725828652715,-660.42,0.00051129,120]
[337571700,1725828652726,-633.79,0.00051129,120]
[337571701,1725828652736,-1294.37,0.00051129,120]
[337571702,1725828652748,-500.0,0.00051129,120]
[337571703,1725828652759,-151.0,0.00051129,120]
[337571704,1725828652769,-206.52884,0.00051129,120]
[337571705,1725828652778,-206.52884,0.00051129,120]
[337571706,1725828652787,-500.0,0.00051129,120]
[337571707,1725828652797,-1921.5,0.00051129,120]
[337571708,1725828652806,-500.0,0.00051129,120]
[337571709,1725828652815,-500.0,0.00051129,120]
[337571710,1725828652825,-19524.50623495,0.00051129,120]
[337571711,1725828652841,-14423.48582955,0.00051129,120]
[337571712,1725828652853,-26314.0479355,0.00051129,120]
[337571713,1725828652862,-156.384981,0.00051129,120]
[337571714,1725828652872,-500.0,0.00051129,120]
[337571715,1725828652881,-500.0,0.00051129,120]
[337571716,1725828652890,-156.384981,0.00051129,120]
[337571717,1725828652900,-225.841964,0.00051129,120]
[337571718,1725828652909,-556.08416536,0.00051129,120]
[337571719,1725828652919,-500.0,0.00051129,120]
[337571720,1725828652930,-225.841964,0.00051129,120]
[337571721,1725828652939,-167.408896,0.00051129,120]
[337571722,1725828652948,-500.0,0.00051129,120]
[337571723,1725828652958,-167.408896,0.00051129,120]
[337571724,1725828652968,-151.0,0.00051129,120]
[337571725,1725828652979,-500.0,0.00051129,120]
[337571726,1725828652989,-637.73,0.00051129,120]
[337571727,1725828653000,-206.52884,0.0005114,120]
[337571728,1725828653010,-206.52884,0.0005114,120]
[337571729,1725828653020,-156.384981,0.0005114,120]
[337571730,1725828653030,-156.384981,0.0005114,120]
[337571731,1725828653040,-167.408896,0.0005114,120]
[337571732,1725828653050,-167.408896,0.0005114,120]
[337571733,1725828653061,-261.945555,0.0005114,120]
[337571734,1725828653071,-500.0,0.00051173,7]
[337571735,1725828653081,-203.10948018,0.00051173,3]
[337571736,1725828653090,-190.83637029,0.00051173,10]
[337571737,1725828653101,-811.72,0.00051186,120]
[337571738,1725828653110,-200.0,0.00051186,120]
[337571739,1725828653119,-229.65031329,0.00051186,120]
[337571740,1725828653129,-309.85047908,0.00051186,120]
[337571741,1725828653139,-500.0,0.00051186,120]
[337571742,1725828653148,-500.0,0.00051186,120]
[337571743,1725828653158,-500.0,0.00051186,120]
[337571744,1725828653168,-500.0,0.00051186,120]
[337571745,1725828653179,-500.0,0.00051186,120]
[337571746,1725828653188,-500.0,0.00051186,120]
[337571747,1725828653197,-500.0,0.00051186,120]
[337571748,1725828653207,-500.0,0.00051186,120]
[337571749,1725828653217,-500.0,0.00051186,120]
[337571750,1725828653227,-500.0,0.00051186,120]
[337571751,1725828653236,-453.07159456,0.00051186,120]
[337571752,1725828653247,-500.0,0.00051186,120]
[337571753,1725828653258,-500.0,0.00051186,120]
[337571754,1725828653270,-500.0,0.00051186,120]
[337571755,1725828653280,-342.44012142,0.00051186,120]
[337571756,1725828653290,-500.0,0.00051186,120]
[337571757,1725828653299,-1288.44,0.00051186,120]
[337571758,1725828653308,-500.0,0.00051186,120]
[337571759,1725828653318,-500.0,0.00051186,120]
[337571760,1725828653327,-500.0,0.00051186,120]
[337571761,1725828653338,-500.0,0.00051186,120]
[337571762,1725828653347,-500.0,0.00051186,120]
[337571763,1725828653358,-846.27,0.00051186,120]
[337571764,1725828653369,-500.0,0.00051186,120]
[337571765,1725828653378,-516.14,0.00051186,120]
[337571766,1725828653387,-500.0,0.00051186,120]
[337571767,1725828653397,-500.0,0.00051186,120]
[337571768,1725828653408,-500.0,0.00051186,120]
[337571769,1725828653418,-500.0,0.00051186,120]
[337571770,1725828653427,-1369.98,0.00051186,120]
[337571771,1725828653436,-500.0,0.00051186,120]
[337571772,1725828653445,-500.0,0.00051186,120]
[337571773,1725828653454,-919.69,0.00051186,120]
[337571774,1725828653463,-500.0,0.00051186,120]
[337571775,1725828653474,-500.0,0.00051186,120]
[337571776,1725828653485,-1123.71,0.00051186,120]
[337571777,1725828653496,-500.0,0.00051186,2]
[337571778,1725828653506,-496.08769026,0.00051186,120]
[337571779,1725828653940,-500.0,0.00045918,120]
[337571780,1725828653949,-500.0,0.00045918,120]
[337571781,1725828653958,-227.13123365,0.00045918,120]
[337571782,1725828653972,-272.86876635,0.00045918,120]
[337571783,1725828653982,-500.0,0.00045918,120]
[337571784,1725828653991,-6.64043582,0.00045918,120]
[337571807,1725829503155,500.0,0.00024,12]
[337571810,1725829756374,-184.084066,0.00031901,2]
[337571811,1725829756397,-166.66666666,0.00031905,2]
[337571812,1725829756419,-3000.0,0.00032004,2]
[337571813,1725829756440,-162.61302546,0.00032005,2]
[337571876,1725829831804,-400.0,0.00032005,2]
[337571878,1725829831814,-200.0,0.00032005,30]
[337571880,1725829831824,-269.0,0.00032006,2]
[337571882,1725829831833,-1364.41938527,0.00032006,2]
[337571885,1725829831862,-5310.0,0.00032006,2]
[337571887,1725829831875,-18225.58061473,0.00032006,2]
[337571889,1725829831885,-166.666666,0.00032243,2]
[337571891,1725829831894,-166.926462,0.00032266,2]
[337571893,1725829831903,-166.926462,0.00032266,120]
[337571895,1725829831913,-278.95827,0.00032652,2]
[337571896,1725829831922,-278.95827,0.0003266,2]
[337571897,1725829831932,-278.95827,0.00032669,2]
[337571898,1725829831943,-278.95827,0.00032678,2]
[337571899,1725829831955,-278.95827,0.00032686,2]
[337571900,1725829831965,-278.95827,0.00032695,2]
[337571901,1725829831974,-278.95827,0.00032704,2]
[337571902,1725829831983,-278.95827,0.00032712,2]
[337571903,1725829831992,-278.95827,0.00032721,2]
[337571904,1725829832001,-278.95827,0.00032729,2]
[337571905,1725829832010,-278.95827,0.00032738,2]
[337571906,1725829832019,-278.95827,0.00032747,2]
[337571907,1725829832029,-278.95827,0.00032755,2]
[337571908,1725829832039,-278.95827,0.00032764,2]
[337571909,1725829832049,-278.95827,0.00032772,2]
[337571910,1725829832059,-278.95827,0.00032781,2]
[337571911,1725829832068,-278.95827,0.0003279,2]
[337571912,1725829832078,-278.95827,0.00032798,2]
[337571913,1725829832087,-278.95827,0.00032807,2]
[337571914,1725829832096,-278.95827,0.00032815,2]
[337571915,1725829832105,-166.666666,0.00033083,2]
[337571916,1725829832114,-166.666666,0.00033923,2]
[337571917,1725829832128,-457.0,0.00035205,2]
[337571918,1725829832139,-193.0,0.00035205,30]
[337571919,1725829832149,-465.0174548,0.00035944,2]
[337571920,1725829832158,-500.0,0.00036873,5]
[337571921,1725829832168,-500.0,0.00036893,7]
[337571922,1725829832179,-425.11656054,0.00036893,15]
[337571923,1725829832188,-308.45638369,0.00036893,15]
[337571924,1725829832197,-500.0,0.00036893,15]
[337571925,1725829832207,-500.0,0.00036893,7]
[337571926,1725829832218,-500.0,0.00036893,15]
[337571927,1725829832229,-500.0,0.00036893,15]
[337571928,1725829832240,-500.0,0.00036893,7]
[337571929,1725829832251,-500.0,0.00036893,15]
[337571930,1725829832262,-500.0,0.00036893,15]
[337571931,1725829832272,-500.0,0.00036893,7]
[337571932,1725829832282,-500.0,0.00036893,15]
[337571933,1725829832291,-500.0,0.00036893,7]
[337571934,1725829832301,-500.0,0.00036893,15]
[337571935,1725829832310,-500.0,0.00036893,15]
[337571936,1725829832320,-500.0,0.00036893,15]
[337571937,1725829832329,-500.0,0.00036893,7]
[337571938,1725829832338,-500.0,0.00036893,15]
[337571939,1725829832348,-500.0,0.00036893,7]
[337571940,1725829832358,-500.0,0.00036893,7]
[337571941,1725829832368,-500.0,0.00036893,15]
[337571942,1725829832383,-500.0,0.00036893,15]
[337571943,1725829832393,-500.0,0.00036893,7]
[337571944,1725829832402,-500.0,0.00036893,15]
[337571945,1725829832413,-500.0,0.00036893,15]
[337571946,1725829832423,-500.0,0.00036893,7]
[337571947,1725829832432,-500.0,0.00036893,15]
[337571948,1725829832441,-500.0,0.00036893,7]
[337571949,1725829832451,-500.0,0.00036893,15]
[337571950,1725829832460,-500.0,0.00036893,7]
[337571951,1725829832470,-500.0,0.00036893,15]
[337571952,1725829832481,-500.0,0.00036893,7]
[337571953,1725829832491,-500.0,0.00036893,15]
[337571954,1725829832501,-500.0,0.00036893,15]
[337571955,1725829832511,-500.0,0.00036893,7]
[337571956,1725829832521,-500.0,0.00036893,15]
[337571957,1725829832531,-500.0,0.00036893,7]
[337571958,1725829832541,-500.0,0.00036893,7]
[337571959,1725829832550,-500.0,0.00036893,7]
[337571960,1725829832560,-500.0,0.00036893,15]
[337571961,1725829832571,-500.0,0.00036893,15]